[Event "*** Titled Tuesday Blitz"]
[Site "Chess.com"]
[Date "2020.04.07"]
[Round "2"]
[White "Korona_91"]
[Black "HrvojeZagreb"]
[Result "1-0"]
[WhiteElo "2418"]
[BlackElo "2114"]
[TimeControl "180+1"]
[EndTime "13:17:35 PDT"]
[Termination "Korona_91 won by resignation"]

1. e4 {[%clk 0:03:00]} 1... e6 {[%clk 0:02:59.7]} 2. Qe2 {[%clk 0:02:58]} 2...
c5 {[%clk 0:02:58.8]} 3. g3 {[%clk 0:02:57.6]} 3... Nc6 {[%clk 0:02:59.1]} 4. c3
{[%clk 0:02:56.7]} 4... e5 {[%clk 0:02:57.6]} 5. Bg2 {[%clk 0:02:56.4]} 5... g6
{[%clk 0:02:57.9]} 6. d3 {[%clk 0:02:57]} 6... Bg7 {[%clk 0:02:58.3]} 7. f4
{[%clk 0:02:57.9]} 7... d6 {[%clk 0:02:57.7]} 8. Nf3 {[%clk 0:02:58.3]} 8...
Nge7 {[%clk 0:02:57.7]} 9. O-O {[%clk 0:02:58.6]} 9... O-O {[%clk 0:02:57.7]}
10. f5 {[%clk 0:02:55.7]} 10... gxf5 {[%clk 0:02:54.9]} 11. Nh4 {[%clk
0:02:55.9]} 11... fxe4 {[%clk 0:02:34.8]} 12. dxe4 {[%clk 0:02:55.5]} 12... f5
{[%clk 0:02:06.1]} 13. Bg5 {[%clk 0:02:43.6]} 13... Qe8 {[%clk 0:02:03.7]} 14.
Nd2 {[%clk 0:02:41.8]} 14... f4 {[%clk 0:01:47.4]} 15. gxf4 {[%clk 0:02:39.9]}
15... Ng6 {[%clk 0:01:47.4]} 16. f5 {[%clk 0:02:33.6]} 16... Nxh4 {[%clk
0:01:46.8]} 17. Bxh4 {[%clk 0:02:33.7]} 17... Bf6 {[%clk 0:01:46.1]} 18. Bxf6
{[%clk 0:02:31.3]} 18... Rxf6 {[%clk 0:01:47]} 19. Rad1 {[%clk 0:02:30]} 19...
Kh8 {[%clk 0:01:37]} 20. Nc4 {[%clk 0:02:30]} 20... Qe7 {[%clk 0:01:36.7]} 21.
Ne3 {[%clk 0:02:29.7]} 21... Rh6 {[%clk 0:01:31.1]} 22. Ng4 {[%clk 0:02:13.6]}
22... Rh4 {[%clk 0:01:30]} 23. h3 {[%clk 0:02:14]} 23... Bd7 {[%clk 0:01:29.2]}
24. f6 {[%clk 0:02:13.7]} 24... Bxg4 {[%clk 0:01:10.4]} 25. hxg4 {[%clk
0:02:01.2]} 25... Qe6 {[%clk 0:01:08.6]} 26. Qf2 {[%clk 0:01:47.1]} 26... Rxg4
{[%clk 0:01:05.5]} 27. Qf5 {[%clk 0:01:44.8]} 27... Qxf5 {[%clk 0:00:40.5]} 28.
Rxf5 {[%clk 0:01:45.7]} 28... Rag8 {[%clk 0:00:35.2]} 29. Rd2 {[%clk 0:01:44.3]}
29... Nd8 {[%clk 0:00:34.7]} 30. f7 {[%clk 0:01:38.9]} 30... Rf8 {[%clk
0:00:33.6]} 31. Rxd6 {[%clk 0:01:33.9]} 31... Rg7 {[%clk 0:00:29.3]} 32. Rxd8
{[%clk 0:01:31.7]} 1-0

[Event "*** Titled Tuesday Blitz"]
[Site "Chess.com"]
[Date "2020.04.07"]
[Round "2"]
[White "DraskovicL"]
[Black "Schachmalanders"]
[Result "1-0"]
[WhiteElo "2559"]
[BlackElo "2306"]
[TimeControl "180+1"]
[EndTime "13:17:36 PDT"]
[Termination "DraskovicL won by checkmate"]

1. Nf3 {[%clk 0:03:00.9]} 1... d5 {[%clk 0:02:59.9]} 2. c4 {[%clk 0:03:00.4]}
2... c6 {[%clk 0:02:59.2]} 3. e3 {[%clk 0:03:00.2]} 3... Bg4 {[%clk 0:02:59.4]}
4. Qb3 {[%clk 0:02:59.6]} 4... Bxf3 {[%clk 0:02:57.2]} 5. Qxb7 {[%clk 0:02:49]}
5... Be4 {[%clk 0:02:51.8]} 6. Qxa8 {[%clk 0:02:45.8]} 6... Qb6 {[%clk
0:02:43.6]} 7. Nc3 {[%clk 0:02:43]} 7... Nf6 {[%clk 0:02:41.7]} 8. d3 {[%clk
0:02:42.5]} 8... Bf5 {[%clk 0:02:40.4]} 9. e4 {[%clk 0:02:40.9]} 9... dxe4
{[%clk 0:02:37.5]} 10. Bf4 {[%clk 0:02:37.7]} 10... e5 {[%clk 0:02:27.9]} 11.
Bxe5 {[%clk 0:02:32]} 11... Nd7 {[%clk 0:02:27.9]} 12. Bxb8 {[%clk 0:02:31]}
12... Nxb8 {[%clk 0:02:28.1]} 13. O-O-O {[%clk 0:02:28.2]} 13... Be7 {[%clk
0:02:15.2]} 14. dxe4 {[%clk 0:02:25.2]} 14... Bg4 {[%clk 0:01:46.5]} 15. f3
{[%clk 0:02:23]} 15... Be6 {[%clk 0:01:45.4]} 16. Nd5 {[%clk 0:01:44.7]} 16...
cxd5 {[%clk 0:01:42.6]} 17. exd5 {[%clk 0:01:44.9]} 17... Bf5 {[%clk 0:01:34.1]}
18. Re1 {[%clk 0:01:34.9]} 18... Kd7 {[%clk 0:00:56.4]} 19. g3 {[%clk
0:01:20.4]} 19... Bb4 {[%clk 0:00:38.5]} 20. Re5 {[%clk 0:01:02.5]} 20... Qd4
{[%clk 0:00:19]} 21. Qb7+ {[%clk 0:01:01.2]} 21... Kd6 {[%clk 0:00:19.5]} 22.
Qe7# {[%clk 0:00:59.7]} 1-0

[Event "*** Titled Tuesday Blitz"]
[Site "Chess.com"]
[Date "2020.04.07"]
[Round "2"]
[White "hermionegrangermagic"]
[Black "Aygehovit1992"]
[Result "0-1"]
[WhiteElo "2464"]
[BlackElo "2730"]
[TimeControl "180+1"]
[EndTime "13:17:39 PDT"]
[Termination "Aygehovit1992 won by resignation"]

1. e4 {[%clk 0:03:00.9]} 1... c5 {[%clk 0:02:52.5]} 2. Nf3 {[%clk 0:03:00.4]}
2... d6 {[%clk 0:02:50.3]} 3. d4 {[%clk 0:03:00]} 3... cxd4 {[%clk 0:02:49.2]}
4. Nxd4 {[%clk 0:03:00.9]} 4... Nf6 {[%clk 0:02:49.3]} 5. Nc3 {[%clk 0:03:01]}
5... Nc6 {[%clk 0:02:49.1]} 6. Bg5 {[%clk 0:03:00.1]} 6... a6 {[%clk 0:02:48.7]}
7. Qd2 {[%clk 0:02:57.6]} 7... Bd7 {[%clk 0:02:47.3]} 8. O-O-O {[%clk
0:02:55.8]} 8... h6 {[%clk 0:02:45.8]} 9. Be3 {[%clk 0:02:43.9]} 9... Ng4 {[%clk
0:02:37.7]} 10. Bc4 {[%clk 0:02:13.2]} 10... Nxe3 {[%clk 0:02:34.7]} 11. fxe3
{[%clk 0:02:12.4]} 11... Ne5 {[%clk 0:02:33]} 12. Bb3 {[%clk 0:02:10.2]} 12...
Rc8 {[%clk 0:02:32.8]} 13. Nf3 {[%clk 0:02:00.2]} 13... Qa5 {[%clk 0:02:30.4]}
14. Rhf1 {[%clk 0:01:44.3]} 14... e6 {[%clk 0:02:24.8]} 15. Qf2 {[%clk
0:01:23.6]} 15... f6 {[%clk 0:02:12.1]} 16. Nd4 {[%clk 0:00:58.1]} 16... Nc4
{[%clk 0:02:11.8]} 17. Bxc4 {[%clk 0:00:28.2]} 17... Rxc4 {[%clk 0:02:12.7]} 18.
Qg3 {[%clk 0:00:24.1]} 18... Qg5 {[%clk 0:02:11.1]} 19. Qf3 {[%clk 0:00:20.6]}
19... Be7 {[%clk 0:02:07.3]} 20. e5 {[%clk 0:00:20.6]} 20... Qxe5 {[%clk
0:02:00.2]} 21. Qxb7 {[%clk 0:00:18.4]} 21... Qxe3+ {[%clk 0:01:59.9]} 22. Kb1
{[%clk 0:00:12]} 22... Rxd4 {[%clk 0:02:00.1]} 23. Rde1 {[%clk 0:00:11.3]} 23...
Qg5 {[%clk 0:01:53.3]} 24. Qb8+ {[%clk 0:00:09.1]} 24... Bd8 {[%clk 0:01:53.4]}
25. Ne4 {[%clk 0:00:08.7]} 25... Rxe4 {[%clk 0:01:52]} 26. Rxe4 {[%clk
0:00:08.3]} 26... Qb5 {[%clk 0:01:51.1]} 27. Qxb5 {[%clk 0:00:04.9]} 27... axb5
{[%clk 0:01:50.4]} 28. Rd1 {[%clk 0:00:03.8]} 28... d5 {[%clk 0:01:50.1]} 29.
Re2 {[%clk 0:00:03.5]} 29... Kf7 {[%clk 0:01:47.8]} 30. a3 {[%clk 0:00:04]}
30... Bc7 {[%clk 0:01:45.4]} 31. Rd3 {[%clk 0:00:04]} 31... h5 {[%clk
0:01:43.6]} 32. h3 {[%clk 0:00:03.7]} 32... h4 {[%clk 0:01:43.6]} 33. Rc3 {[%clk
0:00:04]} 33... Bg3 {[%clk 0:01:43]} 34. Rd2 {[%clk 0:00:03.5]} 34... Rh5 {[%clk
0:01:42.7]} 35. Rc7 {[%clk 0:00:03]} 35... Bxc7 {[%clk 0:01:41.9]} 0-1

[Event "*** Titled Tuesday Blitz"]
[Site "Chess.com"]
[Date "2020.04.07"]
[Round "2"]
[White "TigrVShlyape"]
[Black "Shukh_Nikolay"]
[Result "1-0"]
[WhiteElo "2849"]
[BlackElo "2552"]
[TimeControl "180+1"]
[EndTime "13:17:40 PDT"]
[Termination "TigrVShlyape won by resignation"]

1. d4 {[%clk 0:03:00.9]} 1... Nf6 {[%clk 0:02:59.2]} 2. Nf3 {[%clk 0:03:01.1]}
2... g6 {[%clk 0:02:58.8]} 3. Bf4 {[%clk 0:03:00.6]} 3... Bg7 {[%clk 0:02:58.2]}
4. c3 {[%clk 0:03:00.1]} 4... d6 {[%clk 0:02:57.7]} 5. h3 {[%clk 0:02:59.9]}
5... c6 {[%clk 0:02:57.4]} 6. Nbd2 {[%clk 0:02:58.2]} 6... Nbd7 {[%clk
0:02:57.7]} 7. e4 {[%clk 0:02:57.7]} 7... a5 {[%clk 0:02:34.3]} 8. a4 {[%clk
0:02:56.4]} 8... O-O {[%clk 0:02:29]} 9. Be2 {[%clk 0:02:51]} 9... Re8 {[%clk
0:02:28.1]} 10. O-O {[%clk 0:02:50.4]} 10... e5 {[%clk 0:02:25.2]} 11. dxe5
{[%clk 0:02:49.8]} 11... dxe5 {[%clk 0:02:13.5]} 12. Be3 {[%clk 0:02:44.7]}
12... Qe7 {[%clk 0:02:05.6]} 13. Qc2 {[%clk 0:02:40.9]} 13... Nh5 {[%clk
0:01:58.3]} 14. Rfe1 {[%clk 0:02:36.2]} 14... Nf4 {[%clk 0:01:55.9]} 15. Bf1
{[%clk 0:02:35.9]} 15... Nc5 {[%clk 0:01:51.4]} 16. Nc4 {[%clk 0:02:20.7]} 16...
Nxe4 {[%clk 0:01:06.5]} 17. Nb6 {[%clk 0:02:18.4]} 17... Bf5 {[%clk 0:00:57]}
18. Bxf4 {[%clk 0:02:16.9]} 18... exf4 {[%clk 0:00:53.4]} 19. Nxa8 {[%clk
0:02:16.7]} 19... Rxa8 {[%clk 0:00:52.9]} 20. Bd3 {[%clk 0:02:16.8]} 20... Re8
{[%clk 0:00:51.7]} 21. Nd2 {[%clk 0:02:16]} 21... f3 {[%clk 0:00:45.6]} 22. Bxe4
{[%clk 0:02:14]} 22... Bxh3 {[%clk 0:00:40.5]} 23. Bxf3 {[%clk 0:02:05.6]} 23...
Qxe1+ {[%clk 0:00:39.1]} 24. Rxe1 {[%clk 0:02:05.1]} 24... Rxe1+ {[%clk
0:00:38.5]} 25. Kh2 {[%clk 0:02:02.3]} 25... Be6 {[%clk 0:00:38.5]} 26. g3
{[%clk 0:01:59.2]} 26... h5 {[%clk 0:00:37.1]} 27. Kg2 {[%clk 0:01:55.3]} 27...
Bh6 {[%clk 0:00:35.9]} 28. Ne4 {[%clk 0:01:53.4]} 28... Bc4 {[%clk 0:00:34.2]}
29. Nd2 {[%clk 0:01:46.2]} 29... Ba6 {[%clk 0:00:30.1]} 30. c4 {[%clk
0:01:45.4]} 30... Re5 {[%clk 0:00:16.4]} 31. b3 {[%clk 0:01:44.6]} 31... c5
{[%clk 0:00:11.9]} 32. Qd3 {[%clk 0:01:42.9]} 32... b6 {[%clk 0:00:11.1]} 33.
Ne4 {[%clk 0:01:39.7]} 33... Bg7 {[%clk 0:00:09.1]} 34. Qd8+ {[%clk 0:01:38.2]}
34... Kh7 {[%clk 0:00:08.7]} 35. Ng5+ {[%clk 0:01:37.8]} 1-0

[Event "*** Titled Tuesday Blitz"]
[Site "Chess.com"]
[Date "2020.04.07"]
[Round "2"]
[White "BaMBoMaTTo"]
[Black "Vojtastr"]
[Result "1-0"]
[WhiteElo "2747"]
[BlackElo "2503"]
[TimeControl "180+1"]
[EndTime "13:17:42 PDT"]
[Termination "BaMBoMaTTo won by resignation"]

1. d4 {[%clk 0:02:59.4]} 1... Nf6 {[%clk 0:02:59.7]} 2. c4 {[%clk 0:02:59.8]}
2... c5 {[%clk 0:02:58.9]} 3. d5 {[%clk 0:03:00]} 3... e6 {[%clk 0:02:58.7]} 4.
Nc3 {[%clk 0:02:59.8]} 4... exd5 {[%clk 0:02:59.1]} 5. cxd5 {[%clk 0:03:00.7]}
5... d6 {[%clk 0:02:59.8]} 6. e4 {[%clk 0:03:00.3]} 6... g6 {[%clk 0:03:00.2]}
7. f4 {[%clk 0:03:00.6]} 7... Bg7 {[%clk 0:02:59.7]} 8. Bb5+ {[%clk 0:03:01]}
8... Nfd7 {[%clk 0:02:59.5]} 9. a4 {[%clk 0:02:58.7]} 9... O-O {[%clk
0:02:58.5]} 10. Nf3 {[%clk 0:02:59]} 10... Na6 {[%clk 0:02:58.5]} 11. O-O {[%clk
0:02:58]} 11... Nb4 {[%clk 0:02:58.3]} 12. Re1 {[%clk 0:02:56.3]} 12... a6
{[%clk 0:02:58]} 13. Bf1 {[%clk 0:02:55]} 13... Nf6 {[%clk 0:02:51.8]} 14. h3
{[%clk 0:02:52.9]} 14... Re8 {[%clk 0:02:47.6]} 15. Bc4 {[%clk 0:02:52.4]} 15...
Nh5 {[%clk 0:02:21]} 16. e5 {[%clk 0:02:34.1]} 16... Bf5 {[%clk 0:02:18.9]} 17.
g4 {[%clk 0:02:20.9]} 17... Bc2 {[%clk 0:02:18.5]} 18. Qe2 {[%clk 0:02:14.6]}
18... Ng3 {[%clk 0:02:16.1]} 19. Qg2 {[%clk 0:02:08.1]} 19... dxe5 {[%clk
0:01:56.7]} 20. fxe5 {[%clk 0:02:00.6]} 20... Ne4 {[%clk 0:01:12.4]} 21. Nxe4
{[%clk 0:01:59.1]} 21... Bxe5 {[%clk 0:01:13]} 22. Bg5 {[%clk 0:01:46.5]} 22...
f6 {[%clk 0:01:00]} 23. Nxe5 {[%clk 0:01:46.2]} 23... fxg5 {[%clk 0:01:00.4]}
24. d6+ {[%clk 0:01:44.1]} 24... Kg7 {[%clk 0:00:58.8]} 25. Nf7 {[%clk
0:01:37.5]} 25... Qd7 {[%clk 0:00:48.6]} 26. Nexg5 {[%clk 0:01:37.6]} 26... h6
{[%clk 0:00:28]} 27. Ne6+ {[%clk 0:01:37.6]} 27... Kh7 {[%clk 0:00:28.5]} 28.
Nxc5 {[%clk 0:01:24.2]} 28... Qc6 {[%clk 0:00:20.4]} 29. Qxc6 {[%clk 0:01:23]}
29... Nxc6 {[%clk 0:00:20.8]} 30. Rxe8 {[%clk 0:01:22.8]} 30... Rxe8 {[%clk
0:00:21.7]} 1-0

[Event "*** Titled Tuesday Blitz"]
[Site "Chess.com"]
[Date "2020.04.07"]
[Round "2"]
[White "TastyTablet"]
[Black "MusicCityMaster"]
[Result "0-1"]
[WhiteElo "2586"]
[BlackElo "2328"]
[TimeControl "180+1"]
[EndTime "13:17:48 PDT"]
[Termination "MusicCityMaster won by resignation"]

1. e4 {[%clk 0:02:53.1]} 1... c5 {[%clk 0:02:59.5]} 2. Nf3 {[%clk 0:02:41.6]}
2... d6 {[%clk 0:02:59.6]} 3. d4 {[%clk 0:02:42]} 3... cxd4 {[%clk 0:03:00.2]}
4. Nxd4 {[%clk 0:02:41.7]} 4... Nf6 {[%clk 0:03:00.7]} 5. Nc3 {[%clk 0:02:37.2]}
5... a6 {[%clk 0:03:01.2]} 6. h3 {[%clk 0:02:31.9]} 6... e6 {[%clk 0:03:01.4]}
7. Be2 {[%clk 0:02:27.6]} 7... b5 {[%clk 0:02:44.9]} 8. O-O {[%clk 0:02:26.5]}
8... Bb7 {[%clk 0:02:45.1]} 9. f3 {[%clk 0:02:15.3]} 9... Be7 {[%clk 0:02:37.7]}
10. a3 {[%clk 0:02:09.5]} 10... O-O {[%clk 0:02:36.6]} 11. Re1 {[%clk
0:01:59.6]} 11... Nbd7 {[%clk 0:02:27.6]} 12. Bf1 {[%clk 0:01:57.4]} 12... Rc8
{[%clk 0:02:24.2]} 13. g4 {[%clk 0:01:45.4]} 13... Nb6 {[%clk 0:02:16.6]} 14.
Bg2 {[%clk 0:01:31.7]} 14... Nc4 {[%clk 0:02:01.3]} 15. f4 {[%clk 0:01:18.7]}
15... Qb6 {[%clk 0:01:54.3]} 16. Kh1 {[%clk 0:01:13.8]} 16... Rfd8 {[%clk
0:01:41.8]} 17. b3 {[%clk 0:01:11]} 17... Nxa3 {[%clk 0:01:38.7]} 18. Bxa3
{[%clk 0:01:09]} 18... Rxc3 {[%clk 0:01:38.2]} 19. Bb4 {[%clk 0:01:09.3]} 19...
Rdc8 {[%clk 0:01:24.6]} 20. Bxc3 {[%clk 0:01:08.8]} 20... Rxc3 {[%clk
0:01:24.8]} 21. Qd2 {[%clk 0:01:06.7]} 21... Qc5 {[%clk 0:01:18]} 22. e5 {[%clk
0:00:54.6]} 22... Rxh3+ {[%clk 0:01:14.2]} 23. Kg1 {[%clk 0:00:53.6]} 23... Rg3
{[%clk 0:00:44]} 24. Re2 {[%clk 0:00:43.9]} 24... Ne4 {[%clk 0:00:33.6]} 25. Qe1
{[%clk 0:00:42.5]} 25... Qxd4+ {[%clk 0:00:32.7]} 0-1

[Event "*** Titled Tuesday Blitz"]
[Site "Chess.com"]
[Date "2020.04.07"]
[Round "2"]
[White "VerdeNotte"]
[Black "TastyFrenchFries"]
[Result "1-0"]
[WhiteElo "2734"]
[BlackElo "2404"]
[TimeControl "180+1"]
[EndTime "13:17:49 PDT"]
[Termination "VerdeNotte won by resignation"]

1. e4 {[%clk 0:03:00.9]} 1... e6 {[%clk 0:02:46.2]} 2. d4 {[%clk 0:02:59.5]}
2... d5 {[%clk 0:02:46.3]} 3. Nd2 {[%clk 0:02:59.6]} 3... Nf6 {[%clk 0:02:46]}
4. e5 {[%clk 0:02:59.3]} 4... Nfd7 {[%clk 0:02:46]} 5. Bd3 {[%clk 0:02:59.9]}
5... c5 {[%clk 0:02:46.4]} 6. c3 {[%clk 0:03:00.3]} 6... Nc6 {[%clk 0:02:46.9]}
7. Ngf3 {[%clk 0:03:00.1]} 7... Be7 {[%clk 0:02:45.1]} 8. O-O {[%clk 0:02:58.6]}
8... g5 {[%clk 0:02:45.4]} 9. h3 {[%clk 0:02:51.9]} 9... h5 {[%clk 0:02:43.4]}
10. g4 {[%clk 0:02:50.3]} 10... hxg4 {[%clk 0:02:42.9]} 11. hxg4 {[%clk
0:02:51.2]} 11... Qb6 {[%clk 0:02:42.3]} 12. Qa4 {[%clk 0:02:45.1]} 12... f6
{[%clk 0:01:43.9]} 13. exf6 {[%clk 0:02:38]} 13... Bxf6 {[%clk 0:01:39.9]} 14.
Re1 {[%clk 0:02:35.9]} 14... cxd4 {[%clk 0:01:28.6]} 15. Rxe6+ {[%clk
0:02:25.2]} 15... Kf7 {[%clk 0:01:24.9]} 16. Rd6 {[%clk 0:02:07.2]} 16... dxc3
{[%clk 0:01:13.8]} 17. Nb3 {[%clk 0:01:53.5]} 17... Nde5 {[%clk 0:00:47.9]} 18.
Rxf6+ {[%clk 0:01:41.5]} 18... Kxf6 {[%clk 0:00:46.1]} 19. Bxg5+ {[%clk
0:01:41.6]} 19... Kg7 {[%clk 0:00:41.5]} 20. Bf6+ {[%clk 0:01:23.3]} 20... Kxf6
{[%clk 0:00:40.8]} 21. Qf4+ {[%clk 0:01:23.3]} 21... Ke6 {[%clk 0:00:36.4]} 22.
Nbd4+ {[%clk 0:01:19.2]} 22... Kd6 {[%clk 0:00:35.2]} 23. Nxc6 {[%clk
0:00:59.7]} 23... bxc6 {[%clk 0:00:16.2]} 24. Qxe5+ {[%clk 0:00:58.7]} 24... Kc5
{[%clk 0:00:14.5]} 25. Qxc3+ {[%clk 0:00:56.2]} 25... Kd6 {[%clk 0:00:14.8]} 26.
Qe5+ {[%clk 0:00:55.4]} 26... Kc5 {[%clk 0:00:14.4]} 27. Rc1+ {[%clk 0:00:54.9]}
1-0

[Event "*** Titled Tuesday Blitz"]
[Site "Chess.com"]
[Date "2020.04.07"]
[Round "2"]
[White "talman67"]
[Black "chiwii"]
[Result "1-0"]
[WhiteElo "2536"]
[BlackElo "2206"]
[TimeControl "180+1"]
[EndTime "13:17:53 PDT"]
[Termination "talman67 won by resignation"]

1. e4 {[%clk 0:03:00.9]} 1... c5 {[%clk 0:02:59.8]} 2. Nf3 {[%clk 0:03:00.6]}
2... e6 {[%clk 0:03:00.1]} 3. d4 {[%clk 0:03:01.2]} 3... cxd4 {[%clk 0:03:00.3]}
4. Nxd4 {[%clk 0:03:02.1]} 4... a6 {[%clk 0:03:00.9]} 5. Bd3 {[%clk 0:03:02.4]}
5... g6 {[%clk 0:02:59.3]} 6. Nc3 {[%clk 0:02:58.4]} 6... Bg7 {[%clk 0:02:59.6]}
7. Be3 {[%clk 0:02:58.2]} 7... Ne7 {[%clk 0:02:59]} 8. Qd2 {[%clk 0:02:58.2]}
8... O-O {[%clk 0:02:57.7]} 9. h4 {[%clk 0:02:54.9]} 9... h5 {[%clk 0:02:56.9]}
10. Nb3 {[%clk 0:02:51.7]} 10... d6 {[%clk 0:02:53.3]} 11. Bh6 {[%clk
0:02:48.4]} 11... Nbc6 {[%clk 0:02:52.6]} 12. g4 {[%clk 0:02:45.9]} 12... Ne5
{[%clk 0:02:49.3]} 13. Be2 {[%clk 0:02:44.2]} 13... hxg4 {[%clk 0:02:48.3]} 14.
h5 {[%clk 0:02:43.5]} 14... f5 {[%clk 0:02:18.7]} 15. Bxg7 {[%clk 0:02:32.5]}
15... Kxg7 {[%clk 0:02:16.3]} 16. O-O-O {[%clk 0:02:33.4]} 16... f4 {[%clk
0:02:09.3]} 17. hxg6 {[%clk 0:02:31.5]} 17... N7xg6 {[%clk 0:02:06.9]} 18. Rdg1
{[%clk 0:02:30]} 18... Qg5 {[%clk 0:01:58.4]} 19. Kb1 {[%clk 0:02:24.2]} 19...
Bd7 {[%clk 0:01:56.1]} 20. Qxd6 {[%clk 0:02:22.9]} 20... Rad8 {[%clk 0:01:53.3]}
21. Bxg4 {[%clk 0:02:12.2]} 21... Nxg4 {[%clk 0:01:49.8]} 22. f3 {[%clk
0:02:12.2]} 22... N6e5 {[%clk 0:01:29.6]} 23. Nd4 {[%clk 0:02:02.5]} 23... Nf7
{[%clk 0:00:49.8]} 24. Qxd7 {[%clk 0:01:45.1]} 24... Rxd7 {[%clk 0:00:45.5]} 25.
Nxe6+ {[%clk 0:01:45.2]} 25... Kf6 {[%clk 0:00:44.8]} 26. Nxg5 {[%clk
0:01:43.5]} 26... Nxg5 {[%clk 0:00:35.1]} 27. Rxg4 {[%clk 0:01:43.3]} 27... Ne6
{[%clk 0:00:18.3]} 28. Nd5+ {[%clk 0:01:39.9]} 28... Ke5 {[%clk 0:00:18.6]} 29.
c3 {[%clk 0:01:30.8]} 29... Kd6 {[%clk 0:00:18.2]} 30. Rh6 {[%clk 0:01:29.5]}
30... Re8 {[%clk 0:00:16.8]} 31. Nxf4 {[%clk 0:01:28.3]} 31... Ke5 {[%clk
0:00:16.4]} 32. Nxe6 {[%clk 0:01:27.2]} 32... Rxe6 {[%clk 0:00:16.6]} 33. Rg5+
{[%clk 0:01:26.7]} 33... Kd6 {[%clk 0:00:16.6]} 34. Rd5+ {[%clk 0:01:26.2]}
34... Ke7 {[%clk 0:00:17]} 35. Rh7+ {[%clk 0:01:25.5]} 35... Kf6 {[%clk
0:00:15.9]} 36. Rdxd7 {[%clk 0:01:26.4]} 1-0

[Event "*** Titled Tuesday Blitz"]
[Site "Chess.com"]
[Date "2020.04.07"]
[Round "2"]
[White "Viuvanegra"]
[Black "kleopl"]
[Result "0-1"]
[WhiteElo "1945"]
[BlackElo "2401"]
[TimeControl "180+1"]
[EndTime "13:17:53 PDT"]
[Termination "kleopl won on time"]

1. d4 {[%clk 0:03:00.9]} 1... Nf6 {[%clk 0:02:58]} 2. c4 {[%clk 0:03:00.5]} 2...
g6 {[%clk 0:02:57.5]} 3. Nc3 {[%clk 0:03:00.4]} 3... d5 {[%clk 0:02:55.7]} 4.
cxd5 {[%clk 0:02:59.6]} 4... Nxd5 {[%clk 0:02:56.6]} 5. e4 {[%clk 0:02:59.9]}
5... Nxc3 {[%clk 0:02:56.5]} 6. bxc3 {[%clk 0:03:00.4]} 6... Bg7 {[%clk
0:02:57.2]} 7. Nf3 {[%clk 0:03:00.8]} 7... c5 {[%clk 0:02:57.1]} 8. Rb1 {[%clk
0:03:00.7]} 8... O-O {[%clk 0:02:56.7]} 9. Be2 {[%clk 0:03:00.6]} 9... Nc6
{[%clk 0:02:55.5]} 10. d5 {[%clk 0:03:00.3]} 10... Na5 {[%clk 0:02:52.9]} 11.
Qd2 {[%clk 0:02:50.5]} 11... b6 {[%clk 0:02:51.8]} 12. O-O {[%clk 0:02:44]}
12... e5 {[%clk 0:02:49]} 13. c4 {[%clk 0:02:08.5]} 13... Nb7 {[%clk 0:02:45.6]}
14. Bb2 {[%clk 0:02:06]} 14... Re8 {[%clk 0:02:44.9]} 15. Bc3 {[%clk 0:01:51.6]}
15... Nd6 {[%clk 0:02:41.8]} 16. Bd3 {[%clk 0:01:47.2]} 16... f5 {[%clk
0:02:41.2]} 17. Rfe1 {[%clk 0:01:43]} 17... fxe4 {[%clk 0:02:41.2]} 18. Bxe4
{[%clk 0:01:41.5]} 18... Nxc4 {[%clk 0:02:30.5]} 19. Qc2 {[%clk 0:01:32]} 19...
Nd6 {[%clk 0:02:27.6]} 20. Bd3 {[%clk 0:01:29.2]} 20... e4 {[%clk 0:02:22.9]}
21. Bxg7 {[%clk 0:01:10.4]} 21... exd3 {[%clk 0:02:19.6]} 22. Qc3 {[%clk
0:01:08.5]} 22... Ne4 {[%clk 0:02:09]} 23. Rxe4 {[%clk 0:00:55.2]} 23... Rxe4
{[%clk 0:02:07.4]} 24. Bh6 {[%clk 0:00:55.7]} 24... Qd7 {[%clk 0:01:37.4]} 25.
Qxd3 {[%clk 0:00:34.6]} 25... Ra4 {[%clk 0:01:33.5]} 26. Qb3 {[%clk 0:00:17.6]}
26... Rb4 {[%clk 0:01:30.5]} 27. Qc2 {[%clk 0:00:14.8]} 27... Qf5 {[%clk
0:01:23.9]} 0-1